[Event "GER-chW Blitz 2019"]
[Site "Magdeburg"]
[Date "2019.05.25"]
[Round "1.11"]
[White "Ries, Jutta"]
[Black "Braje, Monika"]
[Result "1-0"]
[ECO "A03"]
[WhiteElo "2017"]
[BlackElo "1781"]
[Annotator "NA RC"]
[PlyCount "109"]
[EventDate "2019.05.25"]
[EventType "tourn"]
[EventCountry "GER"]
[SourceTitle "playchess.com"]
[Source "ChessBase"]
[SourceQuality "1"]
[TimeControl "180+2"]

1. f4 {[%emt 0:00:02]} d5 {[%emt 0:00:02]} 2. Nf3 {[%emt 0:00:01]} Nc6 {[%emt 0:00:02]} 3. b3 {[%emt 0:00:02]} e6 {[%emt 0:00:11]} 4. Bb2 {[%emt 0:00:01]} Nf6 {[%emt 0:00:02]} 5. e3 {[%emt 0:00:02]} Be7 {[%emt 0:00:02]} 6. a3 {[%emt 0:00:09]} Bd7 {[%emt 0:00:05]} 7. Bd3 {[%emt 0:00:02]} h6 {[%emt 0:00:08]} 8. O-O {[%emt 0:00:03]} Rg8 {[%emt 0:00:26]} 9. Ne5 {[%emt 0:00:42]} Bd6 {[%emt 0:00:18]} 10. Qf3 {[%emt 0:00:31]} Qe7 {[%emt 0:00:10]} 11. b4 {[%emt 0:00:35]} a6 {[%emt 0:00:03]} 12. c4 {[%emt 0:00:17]} dxc4 {[%emt 0:00:09]} 13. Nxc4 {[%emt 0:00:02]} Nd5 {[%emt 0:00:27]} 14. Nxd6+ {[%emt 0:00:08]} cxd6 {[%emt 0:00:29]} 15. Nc3 {[%emt 0:00:06]} Nf6 {[%emt 0:00:13]} 16. b5 {[%emt 0:00:04]} axb5 {[%emt 0:00:03]} 17. Nxb5 {[%emt 0:00:02]} Bc8 {[%emt 0:00:06]} 18. a4 {[%emt 0:00:07]} d5 {[%emt 0:00:03]} 19. Ba3 {[%emt 0:00:02]} Qd7 {[%emt 0:00:04]} 20. Rfc1 {[%emt 0:00:13]} Rxa4 {[%emt 0:00:11]} 21. Bc5 {[%emt 0:00:05]} Rxa1 {[%emt 0:00:01]} 22. Rxa1 {[%emt 0:00:01]} Ne4 {[%emt 0:00:11]} 23. Qe2 {[%emt 0:00:09]} f6 {[%emt 0:00:04]} 24. Ra8 {[%emt 0:00:02]} Kf7 {[%emt 0:00:02]} 25. Bxe4 {[%emt 0:00:02]} dxe4 {[%emt 0:00:01]} 26. Nd6+ {[%emt 0:00:01]} Kg6 {[%emt 0:00:01]} 27. Nxe4 {[%emt 0:00:03]} f5 {[%emt 0:00:03]} 28. Ng3 {[%emt 0:00:03]} Qd5 {[%emt 0:00:02]} 29. d4 {[%emt 0:00:04]} Rd8 {[%emt 0:00:11]} 30. Qh5+ {[%emt 0:00:02]} Kh7 {[%emt 0:00:01]} 31. Qh3 {[%emt 0:00:02]} Qc4 {[%emt 0:00:01]} 32. Nf1 {[%emt 0:00:01]} Qe2 {[%emt 0:00:03]} 33. Qg3 {[%emt 0:00:04]} Bd7 {[%emt 0:00:03]} 34. Rxd8 {[%emt 0:00:02]} Nxd8 {[%emt 0:00:00]} 35. Be7 {[%emt 0:00:03]} Nc6 {[%emt 0:00:01]} 36. Bd6 {[%emt 0:00:02]} Qd3 {[%emt 0:00:04]} 37. Be5 {[%emt 0:00:01]} g5 {[%emt 0:00:02]} 38. fxg5 {[%emt 0:00:03]} Qe4 {[%emt 0:00:02]} 39. gxh6 {[%emt 0:00:04]} Qg4 {[%emt 0:00:01]} 40. Qxg4 {[%emt 0:00:03]} fxg4 {[%emt 0:00:01]} 41. Bf4 {[%emt 0:00:01]} Be8 {[%emt 0:00:02]} 42. Ng3 {[%emt 0:00:02]} b5 {[%emt 0:00:01]} 43. Ne4 {[%emt 0:00:01]} b4 {[%emt 0:00:01]} 44. Nc5 {[%emt 0:00:01]} b3 {[%emt 0:00:01]} 45. Nxb3 {[%emt 0:00:01]} Bg6 {[%emt 0:00:01]} 46. Nc5 {[%emt 0:00:01]} Nb4 {[%emt 0:00:01]} 47. Nxe6 {[%emt 0:00:02]} Bf5 {[%emt 0:00:01]} 48. Nf8+ {[%emt 0:00:01]} Kg8 {[%emt 0:00:01]} 49. h7+ {[%emt 0:00:01]} Bxh7 {[%emt 0:00:01]} 50. Nxh7 {[%emt 0:00:02]} Kxh7 {[%emt 0:00:00]} 51. h3 {[%emt 0:00:01]} gxh3 {[%emt 0:00:02]} 52. gxh3 {[%emt 0:00:01]} Nd5 {[%emt 0:00:02]} 53. Kf2 {[%emt 0:00:01]} Kg6 {[%emt 0:00:01]} 54. Kf3 {[%emt 0:00:01]} Kf5 {[%emt 0:00:02]} 55. e4+ {[%emt 0:00:01]} 1-0

[Event "GER-chW Blitz 2019"]
[Site "Magdeburg"]
[Date "2019.05.25"]
[Round "1.12"]
[White "Kushka, Alena"]
[Black "Schulze, Lara"]
[Result "0-1"]
[ECO "E20"]
[WhiteElo "2148"]
[BlackElo "2160"]
[Annotator "ChessBase"]
[PlyCount "128"]
[EventDate "2019.05.25"]
[EventType "tourn"]
[EventCountry "GER"]
[SourceTitle "playchess.com"]
[Source "ChessBase"]
[SourceQuality "1"]
[TimeControl "180+2"]

1. d4 {[%emt 0:00:00]} Nf6 {[%emt 0:00:00]} 2. c4 {[%emt 0:00:01]} e6 {[%emt 0:00:00]} 3. Nc3 {[%emt 0:00:01]} Bb4 {[%emt 0:00:01]} 4. f3 {[%emt 0:00:01]} c5 {[%emt 0:00:06]} 5. d5 {[%emt 0:00:01]} b5 {[%emt 0:00:09]} 6. e4 {[%emt 0:00:03]} bxc4 {[%emt 0:00:24]} 7. Bxc4 {[%emt 0:00:01]} O-O {[%emt 0:00:12]} 8. Nge2 {[%emt 0:00:13]} exd5 {[%emt 0:00:05]} 9. exd5 {[%emt 0:00:16]} d6 {[%emt 0:00:19]} 10. O-O {[%emt 0:00:04]} Ba6 {[%emt 0:00:05]} 11. Bxa6 {[%emt 0:00:07]} Nxa6 {[%emt 0:00:01]} 12. Bg5 {[%emt 0:00:03]} h6 {[%emt 0:00:19]} 13. Bh4 {[%emt 0:00:00]} Nc7 {[%emt 0:00:19]} 14. a3 {[%emt 0:00:26]} Ba5 {[%emt 0:00:01]} 15. Qa4 {[%emt 0:00:14]} Bb6 {[%emt 0:00:01]} 16. Rad1 {[%emt 0:00:10]} Nce8 {[%emt 0:00:12]} 17. Ne4 {[%emt 0:00:12]} g5 {[%emt 0:00:11]} 18. Bg3 {[%emt 0:00:03]} Nxe4 {[%emt 0:00:15]} 19. fxe4 {[%emt 0:00:10]} Qe7 {[%emt 0:00:06]} 20. Nc3 {[%emt 0:00:08]} Ng7 {[%emt 0:00:09]} 21. Nb5 {[%emt 0:00:10]} Rad8 {[%emt 0:00:01]} 22. Rde1 {[%emt 0:00:10]} f6 {[%emt 0:00:02]} 23. Kh1 {[%emt 0:00:06]} Nh5 {[%emt 0:00:04]} 24. Rf3 {[%emt 0:00:12]} Nxg3+ {[%emt 0:00:08]} 25. Rxg3 {[%emt 0:00:02]} c4 {[%emt 0:00:06]} 26. Rf3 {[%emt 0:00:09]} Rc8 {[%emt 0:00:05]} 27. Qd1 {[%emt 0:00:08]} Qe5 {[%emt 0:00:03]} 28. Qc2 {[%emt 0:00:05]} a6 {[%emt 0:00:03]} 29. Rf5 {[%emt 0:00:04]} Qe7 {[%emt 0:00:05]} 30. Nc3 {[%emt 0:00:03]} Bd4 {[%emt 0:00:03]} 31. Ne2 {[%emt 0:00:05]} Be5 {[%emt 0:00:01]} 32. Ref1 {[%emt 0:00:02]} Rb8 {[%emt 0:00:03]} 33. Nc3 {[%emt 0:00:01]} Rfe8 {[%emt 0:00:06]} 34. Qe2 {[%emt 0:00:02]} Rb3 {[%emt 0:00:04]} 35. Qh5 {[%emt 0:00:10]} Kg7 {[%emt 0:00:00]} 36. Rxe5 {[%emt 0:00:09]} dxe5 {[%emt 0:00:04]} 37. Ne2 {[%emt 0:00:01]} Qf7 {[%emt 0:00:11]} 38. Qg4 {[%emt 0:00:01]} Qg6 {[%emt 0:00:03]} 39. Ng3 {[%emt 0:00:01]} Rxg3 {[%emt 0:00:01]} 40. hxg3 {[%emt 0:00:02]} Qf7 {[%emt 0:00:03]} 41. Rd1 {[%emt 0:00:02]} Rd8 {[%emt 0:00:01]} 42. d6 {[%emt 0:00:02]} Qd7 {[%emt 0:00:01]} 43. Qe2 {[%emt 0:00:04]} Qc6 {[%emt 0:00:01]} 44. Qd2 {[%emt 0:00:07]} Qxe4 {[%emt 0:00:02]} 45. d7 {[%emt 0:00:01]} Qc6 {[%emt 0:00:01]} 46. Kh2 {[%emt 0:00:07]} e4 {[%emt 0:00:02]} 47. Qd4 {[%emt 0:00:03]} h5 {[%emt 0:00:03]} 48. Kg1 {[%emt 0:00:07]} Kg6 {[%emt 0:00:01]} 49. Qd6 {[%emt 0:00:01]} Qxd6 {[%emt 0:00:02]} 50. Rxd6 {[%emt 0:00:01]} Kf7 {[%emt 0:00:01]} 51. Kf2 {[%emt 0:00:02]} Ke7 {[%emt 0:00:01]} 52. Rxa6 {[%emt 0:00:01]} Rxd7 {[%emt 0:00:01]} 53. Ke3 {[%emt 0:00:01]} f5 {[%emt 0:00:02]} 54. Ra5 {[%emt 0:00:01]} Rd3+ {[%emt 0:00:02]} 55. Ke2 {[%emt 0:00:02]} Ke6 {[%emt 0:00:02]} 56. Ra6+ {[%emt 0:00:01]} Rd6 {[%emt 0:00:09]} 57. Rxd6+ {[%emt 0:00:04]} Kxd6 {[%emt 0:00:00]} 58. Ke3 {[%emt 0:00:01]} Ke5 {[%emt 0:00:04]} 59. a4 {[%emt 0:00:02]} f4+ {[%emt 0:00:01]} 60. gxf4+ {[%emt 0:00:01]} gxf4+ {[%emt 0:00:01]} 61. Kd2 {[%emt 0:00:03]} Kd4 {[%emt 0:00:01]} 62. a5 {[%emt 0:00:04]} Kc5 {[%emt 0:00:03]} 63. Kc3 {[%emt 0:00:01]} e3 {[%emt 0:00:04]} 64. Kc2 {[%emt 0:00:09]} Kb5 {[%emt 0:00:01]} 0-1

[Event "GER-chW Blitz 2019"]
[Site "Magdeburg"]
[Date "2019.05.25"]
[Round "2.1"]
[White "Roesler, Hannah Clara Hed"]
[Black "Schulze, Lara"]
[Result "0-1"]
[ECO "C02"]
[WhiteElo "1619"]
[BlackElo "2160"]
[Annotator "NA"]
[PlyCount "47"]
[EventDate "2019.05.25"]
[EventType "tourn"]
[EventCountry "GER"]
[SourceTitle "playchess.com"]
[Source "ChessBase"]
[SourceQuality "1"]
[TimeControl "180+2"]

1. e4 {[%emt 0:00:00]} e6 {[%emt 0:00:00]} 2. d4 {[%emt 0:00:01]} d5 {[%emt 0:00:00]} 3. e5 {[%emt 0:00:02]} c5 {[%emt 0:00:02]} 4. c3 {[%emt 0:00:01]} Nc6 {[%emt 0:00:01]} 5. Nf3 {[%emt 0:00:00]} Bd7 {[%emt 0:00:01]} 6. Bd3 {[%emt 0:00:06]} Rc8 {[%emt 0:00:08]} 7. O-O {[%emt 0:00:17]} cxd4 {[%emt 0:00:01]} 8. cxd4 {[%emt 0:00:02]} Nb4 {[%emt 0:00:00]} 9. Nc3 {[%emt 0:00:28]} Nxd3 {[%emt 0:00:05]} 10. Qxd3 {[%emt 0:00:04]} Ne7 {[%emt 0:00:04]} 11. Bg5 {[%emt 0:00:23]} h6 {[%emt 0:00:10]} 12. Bh4 {[%emt 0:00:12]} Qb6 {[%emt 0:00:21]} 13. Rac1 {[%emt 0:00:16]} Nf5 {[%emt 0:00:36]} 14. a4 {[%emt 0:00:35]} Bb4 {[%emt 0:00:29]} 15. Nb5 {[%emt 0:00:10]} O-O {[%emt 0:00:23]} 16. Bg3 {[%emt 0:00:24]} a6 {[%emt 0:00:09]} 17. Nc3 {[%emt 0:00:09]} Bxc3 {[%emt 0:00:09]} 18. bxc3 {[%emt 0:00:04]} Bxa4 {[%emt 0:00:08]} 19. Rfe1 {[%emt 0:00:07]} Bb5 {[%emt 0:00:02]} 20. Rb1 {[%emt 0:00:08]} Qc6 {[%emt 0:00:06]} 21. Qd2 {[%emt 0:00:07]} Qxc3 {[%emt 0:00:04]} 22. Qxc3 {[%emt 0:00:04]} Rxc3 {[%emt 0:00:01]} 23. Nd2 {[%emt 0:00:02]} Nxd4 {[%emt 0:00:05]} 24. Kh1 0-1

[Event "GER-chW Blitz 2019"]
[Site "Magdeburg"]
[Date "2019.05.25"]
[Round "2.2"]
[White "Braje, Monika"]
[Black "Kushka, Alena"]
[Result "0-1"]
[ECO "B21"]
[WhiteElo "1781"]
[BlackElo "2148"]
[Annotator "NA"]
[PlyCount "54"]
[EventDate "2019.05.25"]
[EventType "tourn"]
[EventCountry "GER"]
[SourceTitle "playchess.com"]
[Source "ChessBase"]
[SourceQuality "1"]
[TimeControl "180+2"]

1. e4 {[%emt 0:00:00]} c5 {[%emt 0:00:00]} 2. d4 {[%emt 0:00:01]} cxd4 3. c3 d5 {[%emt 0:00:07]} 4. exd5 {[%emt 0:00:03]} Qxd5 {[%emt 0:00:01]} 5. Nf3 {[%emt 0:00:02]} Nf6 {[%emt 0:00:07]} 6. Qxd4 {[%emt 0:00:07]} Nc6 {[%emt 0:00:09]} 7. Qxd5 {[%emt 0:00:03]} Nxd5 {[%emt 0:00:01]} 8. Bc4 {[%emt 0:00:01]} Nb6 9. Bb3 {[%emt 0:00:01]} Bg4 {[%emt 0:00:10]} 10. Ng5 {[%emt 0:00:10]} e6 {[%emt 0:00:10]} 11. O-O {[%emt 0:00:04]} h6 {[%emt 0:00:04]} 12. Ne4 {[%emt 0:00:01]} O-O-O {[%emt 0:00:05]} 13. f3 {[%emt 0:00:05]} Bf5 {[%emt 0:00:07]} 14. Ng3 {[%emt 0:00:03]} Bc5+ {[%emt 0:00:08]} 15. Kh1 {[%emt 0:00:01]} Bd3 {[%emt 0:00:04]} 16. Rd1 {[%emt 0:00:09]} a5 {[%emt 0:00:06]} 17. a4 {[%emt 0:00:07]} Bc4 {[%emt 0:00:45]} 18. Bc2 {[%emt 0:00:05]} Rxd1+ {[%emt 0:00:02]} 19. Bxd1 {[%emt 0:00:00]} Rd8 {[%emt 0:00:03]} 20. Bc2 {[%emt 0:00:02]} Bd3 {[%emt 0:00:07]} 21. Bb3 {[%emt 0:00:07]} Nc4 {[%emt 0:00:15]} 22. Nd2 {[%emt 0:00:11]} N6e5 {[%emt 0:00:10]} 23. Nge4 {[%emt 0:00:10]} Be7 {[%emt 0:00:10]} 24. Kg1 {[%emt 0:00:07]} f5 {[%emt 0:00:01]} 25. Nf2 {[%emt 0:00:10]} Bc5 {[%emt 0:00:05]} 26. Bxc4 {[%emt 0:00:07]} Nxc4 {[%emt 0:00:08]} 27. Nb3 {[%emt 0:00:02]} Ba7 {[%emt 0:00:04] Nxd3 [%clk 0:01:53]} 0-1

[Event "GER-chW Blitz 2019"]
[Site "Magdeburg"]
[Date "2019.05.25"]
[Round "2.3"]
[White "Mader, Lena"]
[Black "Ries, Jutta"]
[Result "0-1"]
[ECO "A38"]
[WhiteElo "1839"]
[BlackElo "2017"]
[Annotator "NA"]
[PlyCount "63"]
[EventDate "2019.05.25"]
[EventType "tourn"]
[EventCountry "GER"]
[SourceTitle "playchess.com"]
[Source "ChessBase"]
[SourceQuality "1"]
[TimeControl "180+2"]

1. c4 {[%emt 0:00:00]} Nf6 {[%emt 0:00:00]} 2. Nc3 {[%emt 0:00:00]} c5 {[%emt 0:00:05]} 3. g3 Nc6 {[%emt 0:00:01]} 4. Bg2 {[%emt 0:00:00]} g6 {[%emt 0:00:04]} 5. Nf3 {[%emt 0:00:02]} Bg7 {[%emt 0:00:01]} 6. O-O {[%emt 0:00:01]} O-O 7. Rb1 b6 {[%emt 0:00:21]} 8. a3 {[%emt 0:00:02]} Bb7 {[%emt 0:00:01]} 9. b4 {[%emt 0:00:03]} d6 {[%emt 0:00:21]} 10. b5 {[%emt 0:00:28]} Nd4 {[%emt 0:00:14]} 11. Bb2 {[%emt 0:00:23]} Nxf3+ {[%emt 0:00:05]} 12. Bxf3 {[%emt 0:00:01]} Bxf3 {[%emt 0:00:02]} 13. exf3 {[%emt 0:00:01]} d5 {[%emt 0:00:05]} 14. d3 {[%emt 0:00:17]} d4 {[%emt 0:00:05]} 15. Ne4 {[%emt 0:00:06]} Qd7 {[%emt 0:00:04]} 16. Kg2 {[%emt 0:00:08]} Ne8 {[%emt 0:00:28]} 17. Bc1 {[%emt 0:00:15]} e5 {[%emt 0:00:04]} 18. a4 {[%emt 0:00:26]} f5 {[%emt 0:00:10]} 19. Ng5 {[%emt 0:00:07]} h6 {[%emt 0:00:03]} 20. Nh3 {[%emt 0:00:01]} Nd6 {[%emt 0:00:07]} 21. Re1 {[%emt 0:00:30]} Rf7 {[%emt 0:00:19]} 22. Rb2 {[%emt 0:00:06]} g5 {[%emt 0:00:04]} 23. Ng1 {[%emt 0:00:02]} Raf8 {[%emt 0:00:09]} 24. a5 {[%emt 0:00:26]} e4 {[%emt 0:00:01]} 25. dxe4 {[%emt 0:00:02]} fxe4 {[%emt 0:00:10]} 26. fxe4 {[%emt 0:00:05]} Nxc4 {[%emt 0:00:02]} 27. Rbe2 {[%emt 0:00:07]} Nxa5 {[%emt 0:00:14]} 28. e5 {[%emt 0:00:01]} Qb7+ {[%emt 0:00:09]} 29. f3 {[%emt 0:00:08]} g4 {[%emt 0:00:02]} 30. Rf1 {[%emt 0:00:06]} gxf3+ {[%emt 0:00:01]} 31. Nxf3 {[%emt 0:00:03]} Rxf3 {[%emt 0:00:04]} 32. Kh3 0-1

[Event "GER-chW Blitz 2019"]
[Site "Magdeburg"]
[Date "2019.05.25"]
[Round "2.4"]
[White "Zimmer, Elke"]
[Black "Lubbe, Melanie"]
[Result "0-1"]
[ECO "B25"]
[WhiteElo "1926"]
[BlackElo "2278"]
[Annotator "NA"]
[PlyCount "141"]
[EventDate "2019.05.25"]
[EventType "tourn"]
[EventCountry "GER"]
[SourceTitle "playchess.com"]
[Source "ChessBase"]
[SourceQuality "1"]
[TimeControl "180+2"]

1. e4 {[%emt 0:00:00]} c5 {[%emt 0:00:00]} 2. Nc3 {[%emt 0:00:01]} Nc6 {[%emt 0:00:00]} 3. g3 {[%emt 0:00:01]} g6 {[%emt 0:00:00]} 4. Bg2 {[%emt 0:00:00]} Bg7 {[%emt 0:00:01]} 5. d3 {[%emt 0:00:01]} d6 {[%emt 0:00:00]} 6. h3 {[%emt 0:00:03]} e6 {[%emt 0:00:00]} 7. Be3 {[%emt 0:00:01]} Nd4 {[%emt 0:00:01]} 8. Nge2 {[%emt 0:00:06]} Rb8 {[%emt 0:00:01]} 9. Qd2 {[%emt 0:00:10]} b5 {[%emt 0:00:02]} 10. Nd1 {[%emt 0:00:01]} b4 {[%emt 0:00:06]} 11. c3 {[%emt 0:00:04]} Nxe2 {[%emt 0:00:04]} 12. Qxe2 {[%emt 0:00:05]} bxc3 {[%emt 0:00:03]} 13. bxc3 {[%emt 0:00:01]} Bd7 {[%emt 0:00:05]} 14. O-O {[%emt 0:00:01]} Ne7 {[%emt 0:00:01]} 15. Qd2 {[%emt 0:00:06]} O-O {[%emt 0:00:02]} 16. Bh6 {[%emt 0:00:01]} Rb6 {[%emt 0:00:14]} 17. Bxg7 {[%emt 0:00:01]} Kxg7 {[%emt 0:00:01]} 18. d4 {[%emt 0:00:02]} cxd4 {[%emt 0:00:09]} 19. cxd4 {[%emt 0:00:00]} Qb8 {[%emt 0:00:07]} 20. Kh2 {[%emt 0:00:02]} d5 {[%emt 0:00:10]} 21. Rc1 {[%emt 0:00:15]} Bc6 {[%emt 0:00:06]} 22. Nc3 {[%emt 0:00:10]} dxe4 {[%emt 0:00:21]} 23. Nxe4 {[%emt 0:00:02]} Bxe4 {[%emt 0:00:05]} 24. Bxe4 {[%emt 0:00:01]} Rd8 {[%emt 0:00:10]} 25. Rb1 {[%emt 0:00:12]} Qd6 {[%emt 0:00:10]} 26. Rfd1 {[%emt 0:00:16]} Rxb1 {[%emt 0:00:03]} 27. Bxb1 {[%emt 0:00:01]} Nd5 {[%emt 0:00:10]} 28. Bc2 {[%emt 0:00:21]} Rb8 {[%emt 0:00:01]} 29. Bb3 {[%emt 0:00:01]} Nf6 {[%emt 0:00:09]} 30. Qe3 {[%emt 0:00:04]} a5 {[%emt 0:00:06]} 31. Qe5 {[%emt 0:00:17]} Qxe5 {[%emt 0:00:02]} 32. dxe5 {[%emt 0:00:01]} Ne4 {[%emt 0:00:01]} 33. Kg2 {[%emt 0:00:07]} Nc5 {[%emt 0:00:08]} 34. Bc4 {[%emt 0:00:12]} Rb2 {[%emt 0:00:09]} 35. Re1 {[%emt 0:00:06]} Rc2 {[%emt 0:00:02]} 36. Bb5 {[%emt 0:00:12]} Rxa2 37. Rc1 Nb3 {[%emt 0:00:13]} 38. Rc7 {[%emt 0:00:10]} Nd4 {[%emt 0:00:18]} 39. Be8 {[%emt 0:00:01]} a4 {[%emt 0:00:08]} 40. Bxf7 {[%emt 0:00:01]} Kf8 {[%emt 0:00:09]} 41. Rd7 {[%emt 0:00:03]} Rd2 {[%emt 0:00:08]} 42. Bxe6 {[%emt 0:00:06]} Ke8 {[%emt 0:00:03]} 43. Rd6 {[%emt 0:00:08]} Ke7 {[%emt 0:00:02]} 44. Bg8 {[%emt 0:00:03]} a3 {[%emt 0:00:09]} 45. Ra6 {[%emt 0:00:03]} Nb5 {[%emt 0:00:07]} 46. Bc4 {[%emt 0:00:09]} Nd4 {[%emt 0:00:15]} 47. Ra7+ {[%emt 0:00:05]} Ke8 {[%emt 0:00:02]} 48. Rxa3 {[%emt 0:00:05]} Rc2 {[%emt 0:00:05]} 49. Bg8 {[%emt 0:00:04]} h5 {[%emt 0:00:02]} 50. Bh7 {[%emt 0:00:02]} Kf7 {[%emt 0:00:04]} 51. Ra7+ {[%emt 0:00:01]} Ke6 {[%emt 0:00:03]} 52. Bxg6 {[%emt 0:00:01]} Kxe5 {[%emt 0:00:00]} 53. Bxc2 {[%emt 0:00:02]} Nxc2 {[%emt 0:00:01]} 54. Rc7 {[%emt 0:00:02]} Nd4 {[%emt 0:00:01]} 55. f4+ {[%emt 0:00:02]} Kf5 {[%emt 0:00:01]} 56. Rd7 {[%emt 0:00:01]} Ne6 {[%emt 0:00:01]} 57. Kf3 {[%emt 0:00:03]} Kf6 {[%emt 0:00:00]} 58. Rd6 {[%emt 0:00:01]} Ke7 {[%emt 0:00:02]} 59. Rxe6+ {[%emt 0:00:01]} Kxe6 {[%emt 0:00:00]} 60. g4 {[%emt 0:00:02]} h4 {[%emt 0:00:02]} 61. f5+ {[%emt 0:00:02]} Kf6 {[%emt 0:00:00]} 62. Kf4 {[%emt 0:00:00]} Kg7 {[%emt 0:00:01]} 63. g5 {[%emt 0:00:01]} Kf7 {[%emt 0:00:00]} 64. Ke5 {[%emt 0:00:03]} Kg7 {[%emt 0:00:01]} 65. f6+ {[%emt 0:00:01]} Kf7 {[%emt 0:00:00]} 66. Kf5 Kg8 67. g6 {[%emt 0:00:01]} Kf8 {[%emt 0:00:01]} 68. Ke6 {[%emt 0:00:04]} Kg8 {[%emt 0:00:01]} 69. f7+ {[%emt 0:00:02]} Kf8 {[%emt 0:00:00]} 70. g7+ {[%emt 0:00:01]} Kxg7 {[%emt 0:00:01]} 71. Ke7 {[%emt 0:00:00]} 0-1

[Event "GER-chW Blitz 2019"]
[Site "Magdeburg"]
[Date "2019.05.25"]
[Round "2.5"]
[White "Kopylov, Luba"]
[Black "Fuchs, Judith"]
[Result "0-1"]
[ECO "A57"]
[WhiteElo "2078"]
[BlackElo "2218"]
[Annotator "NA"]
[PlyCount "164"]
[EventDate "2019.05.25"]
[EventType "tourn"]
[EventCountry "GER"]
[SourceTitle "playchess.com"]
[Source "ChessBase"]
[SourceQuality "1"]
[TimeControl "180+2"]

1. d4 {[%emt 0:00:00]} Nf6 {[%emt 0:00:00]} 2. c4 {[%emt 0:00:02]} c5 {[%emt 0:00:05]} 3. d5 {[%emt 0:00:01]} b5 {[%emt 0:00:01]} 4. cxb5 {[%emt 0:00:01]} a6 {[%emt 0:00:01]} 5. b6 {[%emt 0:00:01]} d6 {[%emt 0:00:02]} 6. Nc3 {[%emt 0:00:01]} Nbd7 {[%emt 0:00:01]} 7. a4 {[%emt 0:00:02]} Qxb6 {[%emt 0:00:05]} 8. a5 {[%emt 0:00:03]} Qa7 {[%emt 0:00:01]} 9. e4 {[%emt 0:00:03]} g6 {[%emt 0:00:01]} 10. Nf3 {[%emt 0:00:01]} Bg7 {[%emt 0:00:01]} 11. Be2 {[%emt 0:00:01]} O-O {[%emt 0:00:02]} 12. O-O {[%emt 0:00:02]} Rb8 {[%emt 0:00:01]} 13. Nd2 {[%emt 0:00:01]} Ne8 {[%emt 0:00:14]} 14. Nc4 {[%emt 0:00:03]} Nc7 {[%emt 0:00:04]} 15. Na4 {[%emt 0:00:19]} Nb5 {[%emt 0:00:14]} 16. Nab6 {[%emt 0:00:10]} Nd4 {[%emt 0:00:09]} 17. Bd3 {[%emt 0:00:09]} Nxb6 18. Nxb6 Be5 {[%emt 0:00:12]} 19. f4 {[%emt 0:00:37]} Bg7 {[%emt 0:00:01]} 20. h3 {[%emt 0:00:14]} Qc7 {[%emt 0:00:31]} 21. Qe1 {[%emt 0:00:06]} Nb3 {[%emt 0:00:05]} 22. Rb1 {[%emt 0:00:25]} Nxc1 {[%emt 0:00:05]} 23. Qxc1 {[%emt 0:00:01]} Qa7 {[%emt 0:00:23]} 24. Kh1 {[%emt 0:00:13]} Rd8 {[%emt 0:00:21]} 25. b4 {[%emt 0:00:07]} Bd4 {[%emt 0:00:08]} 26. f5 {[%emt 0:00:11]} Bd7 {[%emt 0:00:15]} 27. fxg6 {[%emt 0:00:03]} hxg6 {[%emt 0:00:03]} 28. Qf4 {[%emt 0:00:06]} Rf8 {[%emt 0:00:08]} 29. bxc5 {[%emt 0:00:07]} Bxc5 {[%emt 0:00:09]} 30. Qh6 {[%emt 0:00:17]} Bxb6 {[%emt 0:00:06]} 31. axb6 {[%emt 0:00:01]} Rxb6 {[%emt 0:00:01]} 32. Rxb6 {[%emt 0:00:04]} Qxb6 {[%emt 0:00:02]} 33. Rf4 {[%emt 0:00:00]} Qb2 {[%emt 0:00:08]} 34. Rh4 {[%emt 0:00:04]} Qg7 {[%emt 0:00:03]} 35. Qg5 {[%emt 0:00:01]} f6 {[%emt 0:00:04]} 36. Qd2 {[%emt 0:00:02]} Ra8 {[%emt 0:00:02]} 37. Qa5 {[%emt 0:00:02]} g5 {[%emt 0:00:02]} 38. Rg4 {[%emt 0:00:02]} Bxg4 {[%emt 0:00:02]} 39. hxg4 {[%emt 0:00:01]} Qh6+ {[%emt 0:00:02]} 40. Kg1 {[%emt 0:00:00]} Qg6 {[%emt 0:00:01]} 41. Qb6 {[%emt 0:00:09]} Qe8 {[%emt 0:00:01]} 42. Bxa6 {[%emt 0:00:03]} Qd8 {[%emt 0:00:02]} 43. Qc6 {[%emt 0:00:01]} Qb8 {[%emt 0:00:03]} 44. Bb7 {[%emt 0:00:02]} Ra7 {[%emt 0:00:02]} 45. Ba6 Rc7 {[%emt 0:00:01]} 46. Qa4 {[%emt 0:00:06]} Qb6+ {[%emt 0:00:02]} 47. Kh2 {[%emt 0:00:03]} Ra7 {[%emt 0:00:00]} 48. Bb5 {[%emt 0:00:04]} Qc5 {[%emt 0:00:00]} 49. Qb3 {[%emt 0:00:06]} Rb7 {[%emt 0:00:00]} 50. Qa4 {[%emt 0:00:04]} Qxb5 {[%emt 0:00:00]} 51. Qa8+ {[%emt 0:00:01]} Rb8 {[%emt 0:00:00]} 52. Qa2 {[%emt 0:00:02]} Kg7 {[%emt 0:00:00]} 53. Qf2 {[%emt 0:00:03]} Rh8+ {[%emt 0:00:00]} 54. Kg3 {[%emt 0:00:02]} Qd3+ {[%emt 0:00:00]} 55. Qf3 {[%emt 0:00:02]} Qxf3+ 56. Kxf3 {[%emt 0:00:00]} Ra8 {[%emt 0:00:00]} 57. Kg3 {[%emt 0:00:01]} Ra3+ {[%emt 0:00:00]} 58. Kh2 {[%emt 0:00:01]} Kf8 {[%emt 0:00:00]} 59. g3 {[%emt 0:00:01]} Re3 {[%emt 0:00:00]} 60. Kh3 {[%emt 0:00:01]} Rxe4 {[%emt 0:00:00]} 61. Kg2 {[%emt 0:00:01]} Rxg4 {[%emt 0:00:00]} 62. Kh3 {[%emt 0:00:01]} Rd4 {[%emt 0:00:00]} 63. g4 {[%emt 0:00:01]} Rd3+ {[%emt 0:00:00]} 64. Kh2 {[%emt 0:00:01]} Ke8 {[%emt 0:00:00]} 65. Kg2 {[%emt 0:00:01]} Kd7 {[%emt 0:00:00]} 66. Kf2 {[%emt 0:00:00]} Kc7 {[%emt 0:00:00]} 67. Ke2 {[%emt 0:00:01]} Ra3 {[%emt 0:00:00]} 68. Kd2 {[%emt 0:00:00]} Kb6 {[%emt 0:00:00]} 69. Kc2 {[%emt 0:00:01]} Rh3 {[%emt 0:00:00]} 70. Kd2 {[%emt 0:00:01]} Kc5 {[%emt 0:00:00]} 71. Ke2 {[%emt 0:00:00]} Kd4 {[%emt 0:00:00]} 72. Kf2 {[%emt 0:00:01]} Rb3 {[%emt 0:00:00]} 73. Ke2 {[%emt 0:00:00]} Ra3 74. Kf2 {[%emt 0:00:01]} Ke4 {[%emt 0:00:00]} 75. Ke2 {[%emt 0:00:01]} Ra2+ {[%emt 0:00:00]} 76. Kd1 {[%emt 0:00:00]} Ke3 {[%emt 0:00:00]} 77. Kc1 {[%emt 0:00:01]} Rh2 {[%emt 0:00:00]} 78. Kb1 {[%emt 0:00:00]} Kd3 {[%emt 0:00:00]} 79. Ka1 {[%emt 0:00:01]} Kc3 {[%emt 0:00:00]} 80. Kb1 {[%emt 0:00:00]} Rg2 {[%emt 0:00:00]} 81. Ka1 {[%emt 0:00:01]} Kb3 {[%emt 0:00:00]} 82. Kb1 {[%emt 0:00:00]} Rg1# 0-1